[Event "Titled Tuesday Blitz June 28 Late 2022"]
[White "Salem, A.R. Saleh"]
[Black "Pakleza, Zbigniew"]
[WhiteFideId "9301348"]
[BlackFideId "1119290"]
[WhiteElo "2679"]
[BlackElo "2467"]
[Result "1-0"]
[Round "08"]
[TimeControl "180+1"]
[Date "2022.06.28"]
[WhiteClock "0:01:25"]
[BlackClock "0:00:17"]

1. d4 {[%clk 0:03:00]}  d6 {[%clk 0:02:59]} 2. e4 {[%clk 0:02:59]}  Nf6 {[%clk 0:02:57]} 3. f3 {[%clk 0:03:00]}  Nbd7 {[%clk 0:02:56]} 4. Be3 {[%clk 0:02:57]}  e5 {[%clk 0:02:57]} 5. d5 {[%clk 0:02:55]}  Be7 {[%clk 0:02:57]} 6. Qd2 {[%clk 0:02:54]}  O-O {[%clk 0:02:58]} 7. Ne2 {[%clk 0:02:54]}  Ne8 {[%clk 0:02:52]} 8. Na3 {[%clk 0:02:49]}  g6 {[%clk 0:02:48]} 9. O-O-O {[%clk 0:02:46]}  f5 {[%clk 0:02:27]} 10. exf5 {[%clk 0:02:43]}  gxf5 {[%clk 0:02:26]} 11. Bh6 {[%clk 0:02:36]}  Ng7 {[%clk 0:02:24]} 12. g4 {[%clk 0:02:35]}  f4 {[%clk 0:02:15]} 13. Nc3 {[%clk 0:02:35]}  a6 {[%clk 0:01:51]} 14. Nc4 {[%clk 0:02:35]}  Bg5 {[%clk 0:01:26]} 15. Bxg7 {[%clk 0:02:33]}  Kxg7 {[%clk 0:01:25]} 16. h4 {[%clk 0:02:34]}  Be7 {[%clk 0:01:23]} 17. g5 {[%clk 0:02:32]}  Nb6 {[%clk 0:01:18]} 18. Na5 {[%clk 0:02:31]}  Rb8 {[%clk 0:01:14]} 19. Bd3 {[%clk 0:02:29]}  Bf5 {[%clk 0:01:04]} 20. Rdg1 {[%clk 0:02:22]}  Qd7 {[%clk 0:01:01]} 21. b3 {[%clk 0:02:22]}  Bxd3 {[%clk 0:00:52]} 22. Qxd3 {[%clk 0:02:22]}  Qf5 {[%clk 0:00:51]} 23. Ne4 {[%clk 0:02:23]}  Nd7 {[%clk 0:00:47]} 24. h5 {[%clk 0:02:17]}  Nc5 {[%clk 0:00:42]} 25. Nxc5 {[%clk 0:02:13]}  dxc5 {[%clk 0:00:43]} 26. Qe2 {[%clk 0:02:04]}  b5 {[%clk 0:00:36]} 27. Nc6 {[%clk 0:02:03]}  Rbe8 {[%clk 0:00:35]} 28. h6+ {[%clk 0:01:49]}  Kh8 {[%clk 0:00:31]} 29. Qxe5+ {[%clk 0:01:38]}  Qxe5 {[%clk 0:00:30]} 30. Nxe5 {[%clk 0:01:39]}  Bd6 {[%clk 0:00:22]} 31. g6 {[%clk 0:01:38]}  Rf5 {[%clk 0:00:17]} 32. Nf7+ {[%clk 0:01:23]}  Kg8 {[%clk 0:00:17]} 33. gxh7+ {[%clk 0:01:23]}  Kxf7 {[%clk 0:00:17]} 34. Rg7+ {[%clk 0:01:24]}  Kf6 {[%clk 0:00:17]} 35. Rg8 {[%clk 0:01:25]} 1-0


[Site "https://www.chess.com"]

[Event "Titled Tuesday Blitz June 28 Late 2022"]
[White "Sanchez Alarcon, Juan"]
[Black "Voege, Tobias"]
[WhiteFideId "3401332"]
[BlackFideId "1270513"]
[WhiteElo "2164"]
[BlackElo "2379"]
[Result "0-1"]
[Round "08"]
[TimeControl "180+1"]
[Date "2022.06.29"]
[WhiteClock "0:00:33"]
[BlackClock "0:00:23"]

1. e4 {[%clk 0:03:00]}  e6 {[%clk 0:02:48]} 2. d4 {[%clk 0:02:59]}  d5 {[%clk 0:02:48]} 3. Nc3 {[%clk 0:03:00]}  Bb4 {[%clk 0:02:47]} 4. e5 {[%clk 0:02:59]}  c5 {[%clk 0:02:47]} 5. a3 {[%clk 0:02:59]}  Bxc3+ {[%clk 0:02:47]} 6. bxc3 {[%clk 0:03:00]}  Qa5 {[%clk 0:02:45]} 7. Bd2 {[%clk 0:02:59]}  c4 {[%clk 0:02:44]} 8. Qg4 {[%clk 0:02:59]}  g6 {[%clk 0:02:42]} 9. h4 {[%clk 0:02:52]}  h5 {[%clk 0:02:42]} 10. Qg3 {[%clk 0:02:48]}  Ne7 {[%clk 0:02:41]} 11. Nf3 {[%clk 0:02:44]}  Qa4 {[%clk 0:02:40]} 12. Kd1 {[%clk 0:02:43]}  a5 {[%clk 0:02:33]} 13. Ng5 {[%clk 0:02:40]}  Qb5 {[%clk 0:02:25]} 14. Bc1 {[%clk 0:02:37]}  Nd7 {[%clk 0:02:19]} 15. Qf4 {[%clk 0:02:34]}  Nf5 {[%clk 0:02:19]} 16. f3 {[%clk 0:02:34]}  Nb6 {[%clk 0:02:13]} 17. g4 {[%clk 0:02:32]}  hxg4 {[%clk 0:02:11]} 18. fxg4 {[%clk 0:02:33]}  Nh6 {[%clk 0:02:01]} 19. h5 {[%clk 0:02:32]}  Qd7 {[%clk 0:01:50]} 20. hxg6 {[%clk 0:02:26]}  fxg6 {[%clk 0:01:51]} 21. Nf3 {[%clk 0:02:24]}  Nf7 {[%clk 0:01:41]} 22. Rxh8+ {[%clk 0:02:20]}  Nxh8 {[%clk 0:01:42]} 23. Qh6 {[%clk 0:02:17]}  Nf7 {[%clk 0:01:38]} 24. Qxg6 {[%clk 0:02:17]}  Qe7 {[%clk 0:01:34]} 25. Ng5 {[%clk 0:02:09]}  Na4 {[%clk 0:01:29]} 26. Nxf7 {[%clk 0:02:00]}  Nxc3+ {[%clk 0:01:23]} 27. Kd2 {[%clk 0:01:53]}  Ne4+ {[%clk 0:01:23]} 28. Ke2 {[%clk 0:01:52]}  Qxf7 {[%clk 0:01:20]} 29. Qxf7+ {[%clk 0:01:51]}  Kxf7 {[%clk 0:01:21]} 30. Bg2 {[%clk 0:01:51]}  Nc3+ {[%clk 0:01:19]} 31. Kd2 {[%clk 0:01:50]}  Nb5 {[%clk 0:01:19]} 32. c3 {[%clk 0:01:50]}  Bd7 {[%clk 0:01:16]} 33. Bb2 {[%clk 0:01:45]}  Rh8 {[%clk 0:01:16]} 34. Rf1+ {[%clk 0:01:43]}  Kg7 {[%clk 0:01:14]} 35. Rf2 {[%clk 0:01:40]}  Rh2 {[%clk 0:01:02]} 36. Ke2 {[%clk 0:01:38]}  Be8 {[%clk 0:01:01]} 37. Bf3 {[%clk 0:01:36]}  Rxf2+ {[%clk 0:00:54]} 38. Kxf2 {[%clk 0:01:36]}  Bg6 {[%clk 0:00:55]} 39. Bd1 {[%clk 0:01:31]}  Nc7 {[%clk 0:00:50]} 40. a4 {[%clk 0:01:29]}  Be8 {[%clk 0:00:38]} 41. Ba3 {[%clk 0:01:29]}  Na8 {[%clk 0:00:38]} 42. Bc5 {[%clk 0:01:29]}  b6 {[%clk 0:00:38]} 43. Bd6 {[%clk 0:01:29]}  b5 {[%clk 0:00:38]} 44. axb5 {[%clk 0:01:28]}  Bxb5 {[%clk 0:00:39]} 45. Be7 {[%clk 0:01:26]}  Kf7 {[%clk 0:00:38]} 46. Bd6 {[%clk 0:01:19]}  Nb6 {[%clk 0:00:37]} 47. Bc7 {[%clk 0:01:16]}  a4 {[%clk 0:00:34]} 48. Bd6 {[%clk 0:00:55]}  Nd7 {[%clk 0:00:25]} 49. Bc2 {[%clk 0:00:54]}  Nf8 {[%clk 0:00:24]} 50. g5 {[%clk 0:00:53]}  Ng6 {[%clk 0:00:21]} 51. Ke1 {[%clk 0:00:53]}  Nf4 {[%clk 0:00:20]} 52. Kd2 {[%clk 0:00:52]}  Nh3 {[%clk 0:00:20]} 53. g6+ {[%clk 0:00:50]}  Kg7 {[%clk 0:00:21]} 54. Kc1 {[%clk 0:00:50]}  Nf4 {[%clk 0:00:21]} 55. Kb2 {[%clk 0:00:50]}  Nxg6 {[%clk 0:00:21]} 56. Ka3 {[%clk 0:00:50]}  Be8 {[%clk 0:00:19]} 57. Bxa4 {[%clk 0:00:50]}  Bf7 {[%clk 0:00:20]} 58. Bd7 {[%clk 0:00:49]}  Kh6 {[%clk 0:00:19]} 59. Kb4 {[%clk 0:00:47]}  Kg5 {[%clk 0:00:19]} 60. Bc7 {[%clk 0:00:47]}  Kf5 {[%clk 0:00:20]} 61. Bd8 {[%clk 0:00:46]}  Nf4 {[%clk 0:00:19]} 62. Bh4 {[%clk 0:00:45]}  Nd3+ {[%clk 0:00:18]} 63. Ka3 {[%clk 0:00:44]}  Ke4 {[%clk 0:00:19]} 64. Be7 {[%clk 0:00:41]}  Nf4 {[%clk 0:00:20]} 65. Bb4 {[%clk 0:00:41]}  Kd3 {[%clk 0:00:20]} 66. Kb2 {[%clk 0:00:40]}  Ne2 {[%clk 0:00:20]} 67. Bc8 {[%clk 0:00:38]}  Ng3 {[%clk 0:00:20]} 68. Bd7 {[%clk 0:00:37]}  Nf5 {[%clk 0:00:21]} 69. Bc8 {[%clk 0:00:37]}  Ne3 {[%clk 0:00:21]} 70. Bd7 {[%clk 0:00:34]}  Nd1+ {[%clk 0:00:21]} 71. Kc1 {[%clk 0:00:34]}  Nxc3 {[%clk 0:00:22]} 72. Bc5 {[%clk 0:00:34]}  Ne2+ {[%clk 0:00:22]} 73. Kd1 {[%clk 0:00:33]}  Nxd4 {[%clk 0:00:23]} 0-1


[Site "https://www.chess.com"]

[Event "Titled Tuesday Blitz June 28 Late 2022"]
[White "Sargsyan, Anna M."]
[Black "Nilsson, Joakim"]
[WhiteFideId "13308130"]
[BlackFideId "1723383"]
[WhiteElo "2271"]
[BlackElo "2210"]
[Result "1-0"]
[Round "08"]
[TimeControl "180+1"]
[Date "2022.06.29"]
[WhiteClock "0:00:35"]
[BlackClock "0:00:05"]

1. d4 {[%clk 0:02:58]}  Nf6 {[%clk 0:02:59]} 2. c4 {[%clk 0:02:56]}  e6 {[%clk 0:03:00]} 3. Nf3 {[%clk 0:02:57]}  Bb4+ {[%clk 0:02:59]} 4. Bd2 {[%clk 0:02:57]}  c5 {[%clk 0:02:59]} 5. g3 {[%clk 0:02:57]}  O-O {[%clk 0:02:57]} 6. Bg2 {[%clk 0:02:58]}  Nc6 {[%clk 0:02:57]} 7. Bxb4 {[%clk 0:02:58]}  cxb4 {[%clk 0:02:58]} 8. O-O {[%clk 0:02:58]}  d6 {[%clk 0:02:58]} 9. a3 {[%clk 0:02:56]}  bxa3 {[%clk 0:02:59]} 10. Nxa3 {[%clk 0:02:53]}  e5 {[%clk 0:02:58]} 11. d5 {[%clk 0:02:43]}  Nb4 {[%clk 0:02:57]} 12. Re1 {[%clk 0:02:35]}  a5 {[%clk 0:02:56]} 13. e4 {[%clk 0:02:35]}  Nd7 {[%clk 0:02:56]} 14. Nb5 {[%clk 0:02:23]}  Nc5 {[%clk 0:02:54]} 15. Ra3 {[%clk 0:02:14]}  Qb6 {[%clk 0:02:44]} 16. Qd2 {[%clk 0:02:12]}  Bd7 {[%clk 0:02:41]} 17. Nc3 {[%clk 0:02:13]}  Ra6 {[%clk 0:02:35]} 18. h4 {[%clk 0:02:07]}  Rc8 {[%clk 0:02:35]} 19. Kh2 {[%clk 0:02:07]}  Ncd3 {[%clk 0:02:26]} 20. Rf1 {[%clk 0:02:02]}  Rxc4 {[%clk 0:02:24]} 21. Qg5 {[%clk 0:01:34]}  Rc8 {[%clk 0:02:17]} 22. Nd1 {[%clk 0:01:29]}  h6 {[%clk 0:02:14]} 23. Qe7 {[%clk 0:01:26]}  Nc5 {[%clk 0:01:56]} 24. h5 {[%clk 0:01:21]}  f6 {[%clk 0:01:37]} 25. Nxe5 {[%clk 0:01:12]}  dxe5 {[%clk 0:01:23]} 26. Rc3 {[%clk 0:01:11]}  Qd6 {[%clk 0:01:10]} 27. Qxd6 {[%clk 0:01:08]}  Rxd6 {[%clk 0:01:11]} 28. Ne3 {[%clk 0:01:05]}  Ncd3 {[%clk 0:01:05]} 29. Ra3 {[%clk 0:00:57]}  b6 {[%clk 0:01:00]} 30. Rb1 {[%clk 0:00:45]}  Nxf2 {[%clk 0:00:55]} 31. Kg1 {[%clk 0:00:43]}  Nfd3 {[%clk 0:00:51]} 32. Bf1 {[%clk 0:00:43]}  Nc5 {[%clk 0:00:49]} 33. Bg2 {[%clk 0:00:43]}  Nb7 {[%clk 0:00:28]} 34. Bf1 {[%clk 0:00:39]}  b5 {[%clk 0:00:24]} 35. Rc3 {[%clk 0:00:36]}  Rc5 {[%clk 0:00:20]} 36. Rbc1 {[%clk 0:00:36]}  Rxc3 {[%clk 0:00:19]} 37. Rxc3 {[%clk 0:00:37]}  Kf7 {[%clk 0:00:16]} 38. Rc7 {[%clk 0:00:37]}  Nd8 {[%clk 0:00:13]} 39. Bxb5 {[%clk 0:00:37]}  Ke8 {[%clk 0:00:12]} 40. Nf5 {[%clk 0:00:35]}  Bxb5 {[%clk 0:00:05]} 41. Nxd6+ {[%clk 0:00:35]}  Kf8 {[%clk 0:00:05]} 42. Nxb5 {[%clk 0:00:36]}  Nf7 {[%clk 0:00:05]} 43. d6 {[%clk 0:00:36]}  Na6 {[%clk 0:00:04]} 44. Rc8+ {[%clk 0:00:36]}  Nd8 {[%clk 0:00:03]} 45. Rxd8+ {[%clk 0:00:36]}  Kf7 {[%clk 0:00:04]} 46. Ra8 {[%clk 0:00:36]}  Ke6 {[%clk 0:00:05]} 47. Rxa6 {[%clk 0:00:35]} 1-0


[Site "https://www.chess.com"]

[Event "Titled Tuesday Blitz June 28 Late 2022"]
[White "Sibilio, Mario"]
[Black "Gardezi, Arsal"]
[WhiteFideId "800422"]
[BlackFideId "30949521"]
[WhiteElo "2296"]
[BlackElo "1781"]
[Result "1-0"]
[Round "08"]
[TimeControl "180+1"]
[Date "2022.06.29"]
[WhiteClock "0:00:16"]
[BlackClock "0:00:01"]

1. Nf3 {[%clk 0:03:00]}  Nf6 {[%clk 0:02:58]} 2. c4 {[%clk 0:02:53]}  c6 {[%clk 0:02:58]} 3. Nc3 {[%clk 0:02:49]}  d5 {[%clk 0:02:58]} 4. d4 {[%clk 0:02:47]}  e6 {[%clk 0:02:55]} 5. Bg5 {[%clk 0:02:45]}  dxc4 {[%clk 0:02:52]} 6. e3 {[%clk 0:02:42]}  b5 {[%clk 0:02:51]} 7. a4 {[%clk 0:02:40]}  Qb6 {[%clk 0:02:46]} 8. Bxf6 {[%clk 0:02:34]}  gxf6 {[%clk 0:02:45]} 9. Nd2 {[%clk 0:02:23]}  Nd7 {[%clk 0:02:03]} 10. Qh5 {[%clk 0:02:06]}  Rb8 {[%clk 0:01:24]} 11. Be2 {[%clk 0:01:49]}  a6 {[%clk 0:01:22]} 12. O-O {[%clk 0:01:40]}  Bb7 {[%clk 0:01:22]} 13. b3 {[%clk 0:01:21]}  cxb3 {[%clk 0:01:09]} 14. Nxb3 {[%clk 0:01:19]}  bxa4 {[%clk 0:00:35]} 15. Na5 {[%clk 0:01:17]}  c5 {[%clk 0:00:23]} 16. Nxb7 {[%clk 0:01:13]}  Qxb7 {[%clk 0:00:23]} 17. d5 {[%clk 0:01:01]}  Bd6 {[%clk 0:00:18]} 18. dxe6 {[%clk 0:00:58]}  Ne5 {[%clk 0:00:17]} 19. Rxa4 {[%clk 0:00:41]}  Rg8 {[%clk 0:00:13]} 20. Ne4 {[%clk 0:00:31]}  Ke7 {[%clk 0:00:12]} 21. exf7 {[%clk 0:00:27]}  Nxf7 {[%clk 0:00:07]} 22. Bf3 {[%clk 0:00:22]}  Ne5 {[%clk 0:00:07]} 23. Qxh7+ {[%clk 0:00:20]}  Kf8 {[%clk 0:00:01]} 24. Qh6+ {[%clk 0:00:18]}  Rg7 {[%clk 0:00:01]} 25. Qxf6+ {[%clk 0:00:16]} 1-0


[Site "https://www.chess.com"]

[Event "Titled Tuesday Blitz June 28 Late 2022"]
[White "Steinberg, Nitzan"]
[Black "Deac, Bogdan-Daniel"]
[WhiteFideId "2801795"]
[BlackFideId "1226380"]
[WhiteElo "2471"]
[BlackElo "2648"]
[Result "1/2-1/2"]
[Round "08"]
[TimeControl "180+1"]
[Date "2022.06.28"]
[WhiteClock "0:00:04"]
[BlackClock "0:00:04"]

1. e4 {[%clk 0:03:00]}  c5 {[%clk 0:03:00]} 2. Nf3 {[%clk 0:03:01]}  d6 {[%clk 0:03:00]} 3. d4 {[%clk 0:03:01]}  cxd4 {[%clk 0:03:01]} 4. Nxd4 {[%clk 0:03:02]}  Nf6 {[%clk 0:03:02]} 5. Nc3 {[%clk 0:03:02]}  a6 {[%clk 0:03:03]} 6. h4 {[%clk 0:03:00]}  Nbd7 {[%clk 0:03:02]} 7. f3 {[%clk 0:02:56]}  h5 {[%clk 0:02:54]} 8. a4 {[%clk 0:02:53]}  b6 {[%clk 0:02:51]} 9. Be3 {[%clk 0:02:53]}  Bb7 {[%clk 0:02:49]} 10. Bc4 {[%clk 0:02:48]}  e6 {[%clk 0:02:35]} 11. Qe2 {[%clk 0:02:39]}  Ne5 {[%clk 0:02:23]} 12. Bb3 {[%clk 0:02:37]}  Rc8 {[%clk 0:02:20]} 13. Rd1 {[%clk 0:02:30]}  Qc7 {[%clk 0:01:55]} 14. Bg5 {[%clk 0:02:14]}  Be7 {[%clk 0:01:14]} 15. Bxe6 {[%clk 0:02:00]}  fxe6 {[%clk 0:01:13]} 16. Nxe6 {[%clk 0:02:01]}  Qc4 {[%clk 0:01:13]} 17. Nxg7+ {[%clk 0:02:00]}  Kf7 {[%clk 0:01:12]} 18. Nf5 {[%clk 0:02:00]}  Qxe2+ {[%clk 0:01:10]} 19. Kxe2 {[%clk 0:02:00]}  Rhd8 {[%clk 0:01:10]} 20. Rd4 {[%clk 0:01:43]}  Nc4 {[%clk 0:00:26]} 21. b3 {[%clk 0:01:02]}  Ne5 {[%clk 0:00:23]} 22. Kd2 {[%clk 0:00:49]}  Bf8 {[%clk 0:00:20]} 23. Rd1 {[%clk 0:00:41]}  Rd7 {[%clk 0:00:17]} 24. Ne2 {[%clk 0:00:37]}  d5 {[%clk 0:00:16]} 25. exd5 {[%clk 0:00:13]}  Rxd5 {[%clk 0:00:13]} 26. c4 {[%clk 0:00:12]}  Nxc4+ {[%clk 0:00:10]} 27. bxc4 {[%clk 0:00:11]}  Rxf5 {[%clk 0:00:10]} 28. Ng3 {[%clk 0:00:10]}  Ra5 {[%clk 0:00:10]} 29. Rf4 {[%clk 0:00:09]}  Be7 {[%clk 0:00:05]} 30. Nxh5 {[%clk 0:00:09]}  Rc6 {[%clk 0:00:06]} 31. Re1 {[%clk 0:00:07]}  Bd8 {[%clk 0:00:06]} 32. g4 {[%clk 0:00:06]}  Rxa4 {[%clk 0:00:05]} 33. Bxf6 {[%clk 0:00:06]}  Bxf6 {[%clk 0:00:05]} 34. g5 {[%clk 0:00:06]}  Raxc4 {[%clk 0:00:05]} 35. Rxc4 {[%clk 0:00:05]}  Rxc4 {[%clk 0:00:05]} 36. gxf6 {[%clk 0:00:05]}  Bxf3 {[%clk 0:00:04]} 37. Re7+ {[%clk 0:00:05]}  Kf8 {[%clk 0:00:05]} 38. Ng7 {[%clk 0:00:03]}  Bg4 {[%clk 0:00:05]} 39. h5 {[%clk 0:00:03]}  Rc6 {[%clk 0:00:05]} 40. h6 {[%clk 0:00:02]}  Rxf6 {[%clk 0:00:05]} 41. h7 {[%clk 0:00:03]}  Rh6 {[%clk 0:00:05]} 42. Rc7 {[%clk 0:00:02]}  Rxh7 {[%clk 0:00:02]} 43. Ne6+ {[%clk 0:00:02]}  Bxe6 {[%clk 0:00:02]} 44. Rxh7 {[%clk 0:00:02]}  b5 {[%clk 0:00:02]} 45. Ra7 {[%clk 0:00:02]}  Bc4 {[%clk 0:00:02]} 46. Kc3 {[%clk 0:00:02]}  Ke8 {[%clk 0:00:01]} 47. Kb4 {[%clk 0:00:02]}  Kd8 {[%clk 0:00:02]} 48. Rxa6 {[%clk 0:00:03]}  Ke8 {[%clk 0:00:03]} 49. Kc5 {[%clk 0:00:03]}  Ke7 {[%clk 0:00:03]} 50. Ra7+ {[%clk 0:00:04]}  Ke6 {[%clk 0:00:04]} 51. Rb7 {[%clk 0:00:04]}  Ke5 {[%clk 0:00:05]} 52. Rxb5 {[%clk 0:00:04]}  Bxb5 {[%clk 0:00:04]} 1/2-1/2


[Site "https://www.chess.com"]

[Event "Titled Tuesday Blitz June 28 Late 2022"]
[White "Terry, Renato"]
[Black "Pershin, Denis"]
[WhiteFideId "3803457"]
[BlackFideId "24165506"]
[WhiteElo "2577"]
[BlackElo "2275"]
[Result "1-0"]
[Round "08"]
[TimeControl "180+1"]
[Date "2022.06.28"]
[WhiteClock "0:02:00"]
[BlackClock "0:00:22"]

1. d4 {[%clk 0:03:00]}  Nf6 {[%clk 0:02:59]} 2. Bg5 {[%clk 0:03:00]}  d5 {[%clk 0:02:57]} 3. Bxf6 {[%clk 0:02:58]}  exf6 {[%clk 0:02:53]} 4. e3 {[%clk 0:02:59]}  Bd6 {[%clk 0:02:51]} 5. c4 {[%clk 0:02:59]}  dxc4 {[%clk 0:02:51]} 6. Bxc4 {[%clk 0:03:00]}  O-O {[%clk 0:02:51]} 7. Nc3 {[%clk 0:02:57]}  c6 {[%clk 0:02:47]} 8. Nf3 {[%clk 0:02:55]}  Bg4 {[%clk 0:02:42]} 9. Qc2 {[%clk 0:02:55]}  Nd7 {[%clk 0:02:40]} 10. h3 {[%clk 0:02:50]}  Bh5 {[%clk 0:02:40]} 11. Nh4 {[%clk 0:02:48]}  Kh8 {[%clk 0:02:21]} 12. g4 {[%clk 0:02:41]}  Bg6 {[%clk 0:02:21]} 13. Nxg6+ {[%clk 0:02:42]}  hxg6 {[%clk 0:02:22]} 14. h4 {[%clk 0:02:40]}  b5 {[%clk 0:02:11]} 15. Bb3 {[%clk 0:02:34]}  a5 {[%clk 0:02:07]} 16. a4 {[%clk 0:02:32]}  Qe7 {[%clk 0:01:48]} 17. g5 {[%clk 0:02:27]}  c5 {[%clk 0:01:14]} 18. h5 {[%clk 0:02:21]}  c4 {[%clk 0:00:53]} 19. hxg6+ {[%clk 0:02:21]}  Kg8 {[%clk 0:00:53]} 20. Ba2 {[%clk 0:02:10]}  Bb4 {[%clk 0:00:38]} 21. axb5 {[%clk 0:02:07]}  Nb6 {[%clk 0:00:37]} 22. Qf5 {[%clk 0:02:01]}  fxg5 {[%clk 0:00:22]} 23. Rh8+ {[%clk 0:02:00]} 1-0


[Site "https://www.chess.com"]

[Event "Titled Tuesday Blitz June 28 Late 2022"]
[White "Tristan, Leonardo"]
[Black "Hua, Lefong"]
[WhiteFideId "113816"]
[BlackFideId "2602253"]
[WhiteElo "2404"]
[BlackElo "2597"]
[Result "0-1"]
[Round "08"]
[TimeControl "180+1"]
[Date "2022.06.28"]
[WhiteClock "0:00:02"]
[BlackClock "0:00:23"]

1. d4 {[%clk 0:03:00]}  Nf6 {[%clk 0:02:59]} 2. Nf3 {[%clk 0:03:01]}  g6 {[%clk 0:03:00]} 3. Bf4 {[%clk 0:03:01]}  Bg7 {[%clk 0:03:00]} 4. e3 {[%clk 0:03:01]}  O-O {[%clk 0:02:58]} 5. Be2 {[%clk 0:03:02]}  d6 {[%clk 0:02:58]} 6. O-O {[%clk 0:03:02]}  c5 {[%clk 0:02:59]} 7. c3 {[%clk 0:03:02]}  b6 {[%clk 0:02:58]} 8. h3 {[%clk 0:02:59]}  Bb7 {[%clk 0:02:58]} 9. Bh2 {[%clk 0:03:00]}  a6 {[%clk 0:02:58]} 10. a4 {[%clk 0:02:59]}  Nbd7 {[%clk 0:02:58]} 11. Nbd2 {[%clk 0:03:00]}  Qc8 {[%clk 0:02:56]} 12. Qb3 {[%clk 0:02:56]}  Bc6 {[%clk 0:02:52]} 13. c4 {[%clk 0:02:54]}  cxd4 {[%clk 0:02:39]} 14. exd4 {[%clk 0:02:54]}  d5 {[%clk 0:02:39]} 15. Qa2 {[%clk 0:02:35]}  dxc4 {[%clk 0:02:33]} 16. Bxc4 {[%clk 0:02:27]}  Qb7 {[%clk 0:02:31]} 17. Rfe1 {[%clk 0:02:26]}  Nd5 {[%clk 0:02:17]} 18. Qa3 {[%clk 0:02:17]}  Rfe8 {[%clk 0:02:07]} 19. Ne5 {[%clk 0:02:01]}  Nxe5 {[%clk 0:02:01]} 20. Bxe5 {[%clk 0:01:59]}  b5 {[%clk 0:01:44]} 21. Bf1 {[%clk 0:01:49]}  bxa4 {[%clk 0:01:36]} 22. Nc4 {[%clk 0:01:44]}  Qb3 {[%clk 0:01:31]} 23. Qxb3 {[%clk 0:01:35]}  axb3 {[%clk 0:01:31]} 24. Na5 {[%clk 0:01:35]}  Bb5 {[%clk 0:01:28]} 25. Nxb3 {[%clk 0:01:35]}  Bxf1 {[%clk 0:01:25]} 26. Kxf1 {[%clk 0:01:35]}  Bxe5 {[%clk 0:01:11]} 27. Rxe5 {[%clk 0:01:34]}  e6 {[%clk 0:01:11]} 28. Nc5 {[%clk 0:01:31]}  Reb8 {[%clk 0:01:09]} 29. b3 {[%clk 0:01:28]}  a5 {[%clk 0:01:09]} 30. h4 {[%clk 0:01:17]}  h5 {[%clk 0:01:08]} 31. f3 {[%clk 0:01:15]}  Rb4 {[%clk 0:01:06]} 32. Rd1 {[%clk 0:01:15]}  Kg7 {[%clk 0:00:59]} 33. Kf2 {[%clk 0:01:15]}  Rc8 {[%clk 0:00:52]} 34. g4 {[%clk 0:01:10]}  Nf6 {[%clk 0:00:48]} 35. Kg3 {[%clk 0:01:04]}  Rd8 {[%clk 0:00:38]} 36. g5 {[%clk 0:00:52]}  Nd7 {[%clk 0:00:36]} 37. Nxd7 {[%clk 0:00:44]}  Rxd7 {[%clk 0:00:37]} 38. Rxa5 {[%clk 0:00:43]}  Rxb3 {[%clk 0:00:37]} 39. Kf4 {[%clk 0:00:34]}  Rc7 {[%clk 0:00:33]} 40. Ke5 {[%clk 0:00:21]}  Rxf3 {[%clk 0:00:30]} 41. Kd6 {[%clk 0:00:20]}  Rcc3 {[%clk 0:00:28]} 42. Ra7 {[%clk 0:00:19]}  Rf5 {[%clk 0:00:27]} 43. Ke7 {[%clk 0:00:18]}  Rh3 {[%clk 0:00:23]} 44. Ke8 {[%clk 0:00:15]}  Rxh4 {[%clk 0:00:23]} 45. Rc1 {[%clk 0:00:14]}  Rg4 {[%clk 0:00:23]} 46. Rcc7 {[%clk 0:00:14]}  Rgxg5 {[%clk 0:00:21]} 47. Rxf7+ {[%clk 0:00:14]}  Rxf7 {[%clk 0:00:22]} 48. Rxf7+ {[%clk 0:00:14]}  Kh6 {[%clk 0:00:23]} 49. Ke7 {[%clk 0:00:14]}  Rd5 {[%clk 0:00:20]} 50. Rf4 {[%clk 0:00:14]}  Kg5 {[%clk 0:00:20]} 51. Re4 {[%clk 0:00:12]}  Kf5 {[%clk 0:00:20]} 52. Rh4 {[%clk 0:00:06]}  e5 {[%clk 0:00:20]} 53. dxe5 {[%clk 0:00:05]}  Rxe5+ {[%clk 0:00:21]} 54. Kf7 {[%clk 0:00:05]}  Kg5 {[%clk 0:00:20]} 55. Rh1 {[%clk 0:00:05]}  Rf5+ {[%clk 0:00:21]} 56. Kg7 {[%clk 0:00:05]}  Rf4 {[%clk 0:00:21]} 57. Rg1+ {[%clk 0:00:05]}  Rg4 {[%clk 0:00:21]} 58. Rc1 {[%clk 0:00:06]}  Kh4 {[%clk 0:00:21]} 59. Kh6 {[%clk 0:00:06]}  Kg3 {[%clk 0:00:20]} 60. Rg1+ {[%clk 0:00:05]}  Kf3 {[%clk 0:00:19]} 61. Rf1+ {[%clk 0:00:06]}  Kg2 {[%clk 0:00:20]} 62. Ra1 {[%clk 0:00:05]}  h4 {[%clk 0:00:20]} 63. Ra2+ {[%clk 0:00:06]}  Kg3 {[%clk 0:00:20]} 64. Ra3+ {[%clk 0:00:05]}  Kf4 {[%clk 0:00:21]} 65. Ra4+ {[%clk 0:00:05]}  Kf5 {[%clk 0:00:21]} 66. Ra5+ {[%clk 0:00:05]}  Kf6 {[%clk 0:00:22]} 67. Ra6+ {[%clk 0:00:05]}  Kf7 {[%clk 0:00:22]} 68. Ra7+ {[%clk 0:00:05]}  Ke6 {[%clk 0:00:23]} 69. Ra6+ {[%clk 0:00:04]}  Kd5 {[%clk 0:00:23]} 70. Ra5+ {[%clk 0:00:05]}  Kc6 {[%clk 0:00:23]} 71. Ra6+ {[%clk 0:00:05]}  Kb5 {[%clk 0:00:23]} 72. Ra2 {[%clk 0:00:04]}  g5 {[%clk 0:00:22]} 73. Kh5 {[%clk 0:00:04]}  Rg3 {[%clk 0:00:23]} 74. Kg6 {[%clk 0:00:04]}  h3 {[%clk 0:00:23]} 75. Rh2 {[%clk 0:00:03]}  g4 {[%clk 0:00:23]} 76. Kf5 {[%clk 0:00:03]}  Rg2 {[%clk 0:00:23]} 77. Rh1 {[%clk 0:00:04]}  h2 {[%clk 0:00:23]} 78. Kf4 {[%clk 0:00:04]}  g3 {[%clk 0:00:23]} 79. Kf3 {[%clk 0:00:03]}  Rg1 {[%clk 0:00:23]} 80. Rxh2 {[%clk 0:00:02]}  gxh2 {[%clk 0:00:23]} 0-1


[Site "https://www.chess.com"]

[Event "Titled Tuesday Blitz June 28 Late 2022"]
[White "Vidonyak, Roman"]
[Black "Rosen, Eric"]
[WhiteFideId "14100622"]
[BlackFideId "2032562"]
[WhiteElo "2341"]
[BlackElo "2362"]
[Result "0-1"]
[Round "08"]
[TimeControl "180+1"]
[Date "2022.06.29"]
[WhiteClock "0:02:11"]
[BlackClock "0:02:18"]

1. d4 {[%clk 0:03:00]}  d5 {[%clk 0:02:57]} 2. c4 {[%clk 0:03:01]}  e6 {[%clk 0:02:55]} 3. Nc3 {[%clk 0:03:01]}  Nf6 {[%clk 0:02:52]} 4. cxd5 {[%clk 0:03:01]}  exd5 {[%clk 0:02:53]} 5. Bg5 {[%clk 0:03:01]}  c6 {[%clk 0:02:51]} 6. e3 {[%clk 0:03:01]}  Bd6 {[%clk 0:02:37]} 7. Bd3 {[%clk 0:02:58]}  h6 {[%clk 0:02:36]} 8. Bh4 {[%clk 0:02:58]}  O-O {[%clk 0:02:36]} 9. Nge2 {[%clk 0:02:57]}  Re8 {[%clk 0:02:36]} 10. O-O {[%clk 0:02:57]}  Bxh2+ {[%clk 0:02:34]} 11. Kxh2 {[%clk 0:02:45]}  Ng4+ {[%clk 0:02:34]} 12. Kg3 {[%clk 0:02:29]}  g5 {[%clk 0:02:33]} 13. Bxg5 {[%clk 0:02:12]}  Qxg5 {[%clk 0:02:33]} 14. f4 {[%clk 0:02:11]}  Qh5 {[%clk 0:02:18]} 0-1


[Site "https://www.chess.com"]